bitfinex/quotes_SOLUSD_20220116
["timestamp","ask_amount","ask_price","bid_price","bid_amount"]
[1642310179809,185.58770742,147.42,147.3,50.26199056]
[1642310180009,185.58770742,147.42,147.3,50.01199056]
[1642310180417,183.88693154,147.42,147.3,50.01199056]
[1642310181314,183.88693154,147.42,147.3,50.26199056]
[1642310184123,177.88693154,147.42,147.3,50.26199056]
[1642310184824,177.63693154,147.42,147.31,0.26]
[1642310185324,183.63693154,147.42,147.31,0.26]
[1642310186225,183.88693154,147.42,147.31,0.26]
[1642310186653,183.88693154,147.42,147.3,50.26199056]
[1642310187842,183.88693154,147.42,147.31,0.26]
[1642310188242,183.88693154,147.42,147.3,50.26199056]
[1642310188742,173.70813154,147.42,147.3,50.26199056]
[1642310188943,173.70813154,147.42,147.31,0.26]
[1642310189344,173.70813154,147.42,147.3,6.25]
[1642310189543,173.70813154,147.42,147.3,0.25]
[1642310189744,173.70813154,147.42,147.3,6.25]
[1642310189944,183.88683154,147.42,147.3,6.25]
[1642310190147,183.88683154,147.42,147.3,0.25]
[1642310190546,67.9,147.41,147.3,0.25]
[1642310190746,9.84,147.4,147.3,0.25]
[1642310190947,9.84,147.39,147.3,0.25]
[1642310191151,23.44234633,147.39,147.27,16.5074]
[1642310191344,29.69234633,147.39,147.27,16.5074]
[1642310191547,43.22740598,147.38,147.27,16.5074]
[1642310191745,9.84,147.37,147.27,16.5074]
[1642310191944,16.09,147.37,147.27,10.5074]
[1642310192945,16.09,147.37,147.28,0.26]
[1642310193146,16.09,147.37,147.27,10.5074]
[1642310195849,16.09,147.37,147.27,0.25]
[1642310196047,16.09,147.37,147.26,46.25978636]
[1642310196948,16.09,147.37,147.26,52.25978636]
[1642310197250,16.09,147.37,147.26,46.25978636]
[1642310197649,16.09,147.37,147.26,0.25]
[1642310197851,16.09,147.37,147.25,0.26]
[1642310198150,26.272,147.37,147.25,0.26]
[1642310198850,26.272,147.37,147.25,45.40228506]
[1642310199052,26.272,147.37,147.25,45.14228506]
[1642310199952,26.272,147.37,147.25,45.39228506]
[1642310200152,16.09,147.37,147.25,45.39228506]
[1642310200353,16.09,147.37,147.26,0.26]
[1642310200654,16.09,147.37,147.25,45.39228506]
[1642310200952,16.09,147.37,147.26,0.26]
[1642310201756,16.09,147.37,147.25,45.39228506]
[1642310201955,24.105,147.37,147.25,45.39228506]
[1642310202555,34.287,147.37,147.25,0.25]
[1642310202855,34.287,147.37,147.24,0.26]
[1642310203455,34.287,147.37,147.24,47.09187277]
[1642310203656,34.287,147.37,147.24,47.34187277]
[1642310204356,53.17465549,147.36,147.24,47.08187277]
[1642310204557,30.7476241,147.35,147.24,47.08187277]
[1642310204956,36.9976241,147.35,147.24,47.08187277]
[1642310206459,47.1812241,147.35,147.24,47.08187277]
[1642310208161,47.1812241,147.35,147.24,53.08187277]
[1642310208362,47.1812241,147.35,147.25,0.26]
[1642310208561,36.9976241,147.35,147.24,47.08187277]
[1642310209060,36.9976241,147.35,147.24,53.08187277]
[1642310209469,36.9976241,147.35,147.24,46.83187277]
[1642310210861,36.9976241,147.35,147.25,0.26]
[1642310211863,36.9976241,147.35,147.24,53.08187277]
[1642310212264,36.9976241,147.35,147.24,47.08187277]
[1642310213496,36.7476241,147.35,147.25,0.26]
[1642310215296,36.7476241,147.35,147.24,47.08187277]
[1642310215496,36.9976241,147.35,147.24,47.08187277]
[1642310215796,43.6936241,147.35,147.24,47.08187277]
[1642310218402,53.8770241,147.35,147.24,47.08187277]
[1642310221604,53.8770241,147.35,147.24,0.25]
[1642310221803,53.8770241,147.35,147.23,48.8122]
[1642310222507,53.8770241,147.35,147.24,38.30181266]
[1642310223204,53.8770241,147.35,147.24,38.55181266]
[1642310223406,47.1810241,147.35,147.24,38.55181266]
[1642310224306,38.52369714,147.35,147.25,0.26]
[1642310224506,38.52369714,147.35,147.25,23.299]
[1642310225008,38.52369714,147.35,147.25,23.289]
[1642310225604,38.77369714,147.35,147.25,23.289]
[1642310231020,38.77369714,147.35,147.25,23.039]
[1642310232028,36.9976241,147.35,147.25,23.039]
[1642310233425,47.1812241,147.35,147.25,23.039]
[1642310233629,47.1812241,147.35,147.25,23.289]
[1642310240559,70.4617241,147.35,147.25,23.289]
[1642310241157,70.4617241,147.35,147.25,23.039]
[1642310241361,85.76419631,147.35,147.25,23.039]
[1642310241756,99.73152814,147.35,147.25,23.039]
[1642310241959,98.03075226,147.35,147.25,23.039]
[1642310242158,98.03075226,147.35,147.25,24.9735229]
[1642310242962,165.93075226,147.35,147.25,24.9735229]
[1642310243366,165.93075226,147.35,147.25,42.68764489]
[1642310243561,98.03075226,147.35,147.25,42.68764489]
[1642310248566,84.06342043,147.35,147.25,42.68764489]
[1642310250168,83.81342043,147.35,147.25,42.93764489]
[1642310250771,70.2117241,147.35,147.25,42.93764489]
[1642310251174,70.2117241,147.35,147.25,42.68764489]
[1642310251370,70.4617241,147.35,147.25,41.00312199]
[1642310252973,60.2781241,147.35,147.25,41.00312199]
[1642310254876,60.2781241,147.35,147.26,0.26]
[1642310255477,16.09,147.35,147.26,0.26]
[1642310256575,36.78903641,147.34,147.26,0.26]
[1642310256976,42.78903641,147.34,147.26,0.26]
[1642310257275,6.0,147.34,147.26,0.26]
[1642310257676,0.25,147.35,147.26,0.26]
[1642310258405,51.62654311,147.36,147.26,0.26]
[1642310258806,51.62654311,147.36,147.25,41.00312199]
[1642310259008,51.62654311,147.36,147.25,42.93677743]
[1642310260312,51.62654311,147.36,147.26,0.26]
[1642310261808,76.51724311,147.36,147.26,0.26]
[1642310263811,9.84,147.35,147.26,0.26]
[1642310264212,16.09,147.35,147.26,0.26]
[1642310264413,16.09,147.35,147.25,42.68677743]
[1642310264811,40.24083183,147.35,147.25,24.97265544]
[1642310265010,40.24083183,147.35,147.25,25.22265544]
[1642310265210,54.40963181,147.35,147.25,24.97265544]
[1642310265409,40.44229998,147.35,147.25,24.97265544]
[1642310265812,54.40963181,147.35,147.25,24.97265544]
[1642310267912,54.40963181,147.35,147.25,25.22265544]
[1642310267913,52.70885593,147.35,147.25,25.22265544]
[1642310268110,52.70885593,147.35,147.25,24.97265544]
[1642310268313,175.67885593,147.35,147.25,23.039]
[1642310270918,175.67885593,147.35,147.25,42.13385374]
[1642310272914,228.86285369,147.35,147.25,42.13385374]
[1642310274718,228.61285369,147.35,147.25,42.13385374]
[1642310274930,228.61285369,147.35,147.25,42.38385374]
[1642310275119,228.61285369,147.35,147.25,42.13385374]
[1642310275520,28.94328697,147.33,147.25,42.13385374]
[1642310275720,9.84,147.32,147.25,42.13385374]
[1642310275921,15.84,147.32,147.25,42.13385374]
[1642310276121,16.09,147.32,147.25,23.039]
[1642310280831,16.09,147.32,147.25,23.289]
[1642310281032,16.09,147.32,147.25,23.039]
[1642310283730,16.09,147.32,147.25,23.289]
[1642310284232,16.09,147.32,147.25,23.039]
[1642310284832,16.09,147.32,147.25,23.289]
[1642310285032,16.09,147.32,147.25,23.039]
[1642310285436,16.09,147.32,147.25,23.289]
[1642310287936,16.09,147.32,147.25,23.039]
[1642310288138,16.09,147.32,147.25,23.289]
[1642310289438,16.09,147.32,147.25,23.039]
[1642310290038,15.59,147.32,147.25,23.039]
[1642310290238,0.25,147.32,147.25,23.039]
[1642310290439,25.00848697,147.33,147.25,23.039]
[1642310290842,25.00848697,147.33,147.25,23.289]
[1642310291538,24.75848697,147.33,147.25,23.289]
[1642310291762,25.00848697,147.33,147.25,23.289]
[1642310292562,6.25,147.33,147.25,23.289]
[1642310292764,40.2956,147.34,147.25,23.289]
[1642310292963,40.5456,147.34,147.25,23.289]
[1642310293369,16.09,147.34,147.25,23.289]
[1642310293763,6.0,147.34,147.26,0.26]
[1642310293964,6.0,147.35,147.26,0.26]
[1642310294163,6.25,147.35,147.26,0.26]
[1642310294866,6.25,147.35,147.27,10.16287658]
[1642310295065,0.25,147.35,147.27,32.96447658]
[1642310295265,6.25,147.35,147.28,0.26]
[1642310295667,0.25,147.35,147.28,0.26]
[1642310296567,9.84,147.37,147.28,0.26]
[1642310296767,9.84,147.37,147.28,9.12]
[1642310296965,15.84,147.37,147.28,9.37]
[1642310297167,15.84,147.37,147.29,24.2316]
[1642310297368,15.84,147.37,147.29,24.4816]
[1642310297569,40.07187011,147.36,147.3,39.88419475]
[1642310297968,46.07187011,147.36,147.3,0.25]
[1642310298367,46.32187011,147.36,147.3,0.25]
[1642310298968,46.32187011,147.36,147.29,65.5918914]
[1642310299179,48.21243107,147.36,147.29,65.3418914]
[1642310299981,47.96243107,147.36,147.29,65.3418914]
[1642310300480,7.89056096,147.36,147.29,65.3418914]
[1642310300678,7.89056096,147.36,147.3,0.26]
[1642310301484,7.89056096,147.36,147.29,65.5918914]
[1642310301683,7.89056096,147.36,147.3,0.26]
[1642310303522,8.14056096,147.36,147.29,24.2316]
[1642310303921,8.14056096,147.36,147.25,1.9332885]
[1642310304124,9.84,147.35,147.25,2.1832885]
[1642310304323,16.76482429,147.34,147.26,41.77867348]
[1642310304722,16.76482429,147.34,147.26,42.02867348]
[1642310305025,22.76482429,147.34,147.26,41.77867348]
[1642310305223,23.01482429,147.34,147.26,41.77867348]
[1642310306322,23.01482429,147.34,147.26,42.02867348]
[1642310306925,17.01482429,147.34,147.26,42.02867348]
[1642310308826,23.01482429,147.34,147.26,42.02867348]
[1642310309227,9.84,147.33,147.26,42.02867348]
[1642310309526,7.4692153,147.38,147.26,42.02867348]
[1642310309729,9.84,147.37,147.27,23.2028]
[1642310309926,16.09,147.37,147.27,23.7128]
[1642310310535,35.38927011,147.36,147.27,23.7128]
[1642310311029,41.38927011,147.36,147.27,23.7128]
[1642310311429,41.38927011,147.36,147.29,15.28629644]
[1642310311630,41.38927011,147.36,147.29,39.08119644]
[1642310311828,6.0,147.36,147.3,0.26]
[1642310312330,16.09,147.37,147.3,0.26]
[1642310312933,54.97339649,147.37,147.3,0.26]
[1642310316233,16.09,147.37,147.3,0.26]
[1642310316635,15.84,147.37,147.3,0.26]
[1642310317035,6.0,147.37,147.3,0.26]
[1642310317436,42.40135059,147.39,147.3,0.26]
[1642310317637,42.65135059,147.39,147.3,0.26]
[1642310319242,44.58055799,147.39,147.3,0.26]
[1642310323975,9.84,147.38,147.3,0.26]
[1642310324376,16.09,147.38,147.3,0.26]
[1642310324574,15.84,147.38,147.3,0.26]
[1642310325175,16.09,147.38,147.3,0.26]
[1642310327580,15.84,147.38,147.3,0.26]
[1642310329380,16.09,147.38,147.3,0.26]
[1642310329781,15.84,147.38,147.3,0.26]
[1642310331685,16.09,147.38,147.3,0.26]
[1642310332886,16.09,147.38,147.29,49.35549644]
[1642310334490,16.09,147.38,147.3,0.26]
[1642310343499,1.93557417,147.37,147.3,0.26]
[1642310344003,31.54657417,147.37,147.3,0.26]
[1642310351034,29.611,147.37,147.29,34.0692]
[1642310351237,39.451,147.37,147.29,34.0692]
[1642310351635,39.451,147.37,147.29,10.0243]
[1642310352838,39.451,147.37,147.29,10.2743]
[1642310353341,39.451,147.37,147.3,0.26]
[1642310353538,39.451,147.37,147.3,23.0961]
[1642310353739,39.451,147.37,147.3,23.3461]
[1642310354741,39.451,147.37,147.3,37.0556708]
[1642310354941,39.451,147.37,147.3,23.3461]
[1642310355143,29.611,147.37,147.3,23.3461]
[1642310355741,29.361,147.37,147.3,23.3461]
[1642310356941,29.611,147.37,147.3,23.3461]
[1642310358143,29.611,147.37,147.3,23.0861]
[1642310359448,29.611,147.37,147.31,0.26]
[1642310362147,31.54616075,147.37,147.31,0.26]
[1642310371056,29.611,147.37,147.31,0.26]
[1642310379563,29.611,147.37,147.3,23.0861]
[1642310381064,29.361,147.37,147.3,23.0861]
[1642310381766,1.93533347,147.36,147.3,23.0861]
[1642310382163,7.93533347,147.36,147.3,23.0861]
[1642310382365,8.18533347,147.36,147.3,23.0861]
[1642310386365,1.93533347,147.36,147.3,23.0861]
[1642310386566,1.93533347,147.36,147.31,68.16]
[1642310386865,3.87066694,147.4,147.33,67.9]
[1642310387068,3.87066694,147.4,147.33,76.103]
[1642310387264,3.87066694,147.4,147.34,0.26]
[1642310387472,36.85768958,147.39,147.34,21.90745274]
[1642310387866,36.85768958,147.39,147.34,96.05745274]
[1642310388872,3.87066694,147.4,147.34,96.05745274]
[1642310389798,49.99343759,147.39,147.34,96.05745274]
[1642310391001,3.87066694,147.4,147.34,90.05745274]
[1642310391498,5.80600041,147.43,147.34,90.05745274]
[1642310391699,5.80600041,147.43,147.35,23.6339]
[1642310391899,24.07812544,147.46,147.36,0.26]
[1642310391900,39.04427772,147.44,147.36,0.26]
[1642310392100,39.04427772,147.44,147.36,7.788]
[1642310392599,39.04427772,147.44,147.36,8.038]
[1642310392798,45.04427772,147.44,147.37,24.9448]
[1642310393299,22.9883,147.46,147.37,25.1948]
[1642310393499,0.25,147.44,147.37,25.1948]
[1642310393698,28.9883,147.46,147.38,0.26]
[1642310393898,29.2383,147.46,147.38,0.26]
[1642310394400,36.82483807,147.45,147.38,0.26]
[1642310394802,42.82483807,147.45,147.38,0.26]
[1642310397204,42.82483807,147.45,147.37,25.1948]
[1642310398808,42.82483807,147.45,147.38,0.26]
[1642310399403,6.0,147.45,147.38,0.26]
[1642310399807,24.113,147.48,147.38,0.26]
[1642310400403,42.26570942,147.47,147.38,0.26]
[1642310401606,42.26570942,147.47,147.39,67.9]
[1642310401807,42.26570942,147.47,147.4,35.67751718]
[1642310402205,42.26570942,147.47,147.4,41.92751718]
[1642310402408,42.26570942,147.47,147.4,66.21621718]
[1642310402605,42.26570942,147.47,147.41,67.9]
[1642310402805,42.26570942,147.47,147.4,66.21621718]
[1642310403006,42.26570942,147.47,147.41,0.25]
[1642310403207,42.26570942,147.47,147.4,134.11621718]
[1642310410819,22.6557,147.52,147.4,134.11621718]
[1642310411018,22.9057,147.52,147.4,134.11621718]
[1642310411419,22.9057,147.52,147.4,141.20021718]
[1642310411818,43.25441502,147.51,147.4,141.20021718]
[1642310412718,23.7864,147.5,147.4,141.20021718]
[1642310412918,23.7864,147.5,147.4,134.11621718]
[1642310416028,43.25441502,147.51,147.41,9.84]
[1642310416225,40.97175975,147.56,147.43,67.9]
[1642310416424,34.2581,147.56,147.45,67.9]
[1642310416626,34.2581,147.56,147.46,24.0457]
[1642310416824,34.2581,147.56,147.46,24.5557]
[1642310417226,41.47756919,147.55,147.47,21.64745274]
[1642310417425,41.72756919,147.55,147.48,0.26]
[1642310419428,41.47756919,147.55,147.48,0.26]
[1642310419627,41.47756919,147.55,147.48,68.16]
[1642310419827,41.47756919,147.55,147.48,68.41]
[1642310420231,41.47756919,147.55,147.48,91.1935]
[1642310420630,41.47756919,147.55,147.48,23.2935]
[1642310420831,41.47756919,147.55,147.49,67.9]
[1642310421231,41.47756919,147.55,147.48,22.7835]
[1642310421430,41.72756919,147.55,147.48,22.7835]
[1642310421932,41.72756919,147.55,147.44,9.84]
[1642310422132,24.1896,147.54,147.45,23.3049]
[1642310422431,24.1896,147.54,147.45,62.76473654]
[1642310423434,24.1896,147.54,147.46,0.26]
[1642310423833,41.72756919,147.55,147.46,0.26]
[1642310424033,41.47756919,147.55,147.46,10.1]
[1642310424263,41.47756919,147.55,147.47,67.9]
[1642310424435,41.47756919,147.55,147.49,67.9]
[1642310424635,41.47756919,147.55,147.51,67.9]
[1642310424835,41.47756919,147.55,147.52,0.26]
[1642310425038,3.84262113,147.56,147.52,0.26]
[1642310426138,39.63404643,147.55,147.52,0.26]
[1642310427539,3.03219997,147.54,147.52,0.26]
[1642310427941,6.06429997,147.54,147.52,0.26]
[1642310428941,3.03219997,147.54,147.52,0.26]
[1642310431562,39.63404643,147.55,147.52,0.26]
[1642310434166,39.63404643,147.55,147.52,10.3944]
[1642310434365,23.6793,147.6,147.52,16.6444]
[1642310434564,23.6793,147.6,147.52,41.0432]
[1642310435365,23.6793,147.6,147.52,35.0432]
[1642310435566,23.6793,147.6,147.52,24.9088]
[1642310435965,49.41527437,147.59,147.52,24.9088]
[1642310436164,49.41527437,147.59,147.52,30.9088]
[1642310443974,49.41527437,147.59,147.49,36.19175466]
[1642310443975,67.9,147.57,147.44,10.409]
[1642310444176,67.9,147.53,147.37,10.3539]
[1642310444374,67.9,147.5,147.31,61.10062594]
[1642310444583,132.81,147.49,147.34,7.08028175]
[1642310444775,29.74761129,147.46,147.36,42.11112314]
[1642310444973,20.0164,147.45,147.36,5.38051872]
[1642310445175,35.70006896,147.45,147.36,5.38051872]
[1642310445375,122.53017987,147.45,147.36,5.38051872]
[1642310445680,22.31477987,147.44,147.36,5.38051872]
[1642310445878,9.84,147.43,147.36,5.38051872]
[1642310446079,1.26216386,147.42,147.36,5.38051872]
[1642310446274,9.84,147.41,147.36,46.58772943]
[1642310446676,10.09,147.41,147.36,46.58772943]
[1642310446877,16.09,147.41,147.36,46.58772943]
[1642310447476,15.84,147.41,147.36,46.58772943]
[1642310448280,9.84,147.45,147.36,46.58772943]
[1642310448683,35.23333266,147.45,147.36,46.58772943]
[1642310448880,35.23333266,147.45,147.37,0.26]
[1642310449079,9.84,147.45,147.37,0.26]
[1642310449483,10.09,147.45,147.37,0.26]
[1642310449887,15.84,147.45,147.37,0.26]
[1642310450084,39.35196715,147.45,147.37,0.26]
[1642310450286,39.10196715,147.45,147.37,0.26]
[1642310450484,15.84,147.45,147.37,0.26]
[1642310451984,0.26,147.44,147.37,0.26]
[1642310452685,15.84,147.45,147.37,68.16]
[1642310452885,15.84,147.45,147.37,68.41]
[1642310453988,15.84,147.45,147.37,0.51]
[1642310454190,15.84,147.45,147.37,0.26]
[1642310454191,2.27133814,147.44,147.37,0.26]
[1642310454389,8.27133814,147.44,147.37,0.26]
[1642310454590,6.0,147.44,147.37,0.26]
[1642310454988,15.84,147.45,147.37,0.26]
[1642310455691,44.02038594,147.45,147.37,0.26]
[1642310459627,44.02038594,147.45,147.36,41.45721071]
[1642310459825,44.27038594,147.45,147.36,41.45721071]
[1642310463326,44.27038594,147.45,147.36,41.20721071]
[1642310463826,0.26,147.44,147.36,41.20721071]
[1642310464224,0.26,147.44,147.32,67.9]
[1642310464429,9.84,147.43,147.32,0.25]
[1642310464828,28.60616646,147.43,147.32,0.25]
[1642310465027,24.2876,147.42,147.32,0.25]
[1642310465226,12.66938921,147.41,147.32,0.25]
[1642310465426,18.91938921,147.41,147.28,39.20205779]
[1642310466030,18.91938921,147.41,147.29,0.26]
[1642310467829,0.26,147.4,147.29,0.26]
[1642310468030,10.1,147.4,147.29,0.26]
[1642310468432,16.35,147.4,147.29,0.26]
[1642310475841,16.35,147.4,147.29,10.3657]
[1642310476341,16.35,147.4,147.29,10.6157]
[1642310477843,9.84,147.4,147.3,67.9]
[1642310478243,9.84,147.4,147.31,0.26]
[1642310478846,9.84,147.4,147.31,36.62928017]
[1642310479045,9.84,147.4,147.32,67.9]
[1642310479444,9.84,147.4,147.33,0.26]
[1642310480045,24.2876,147.42,147.33,0.26]
[1642310480244,24.2876,147.42,147.32,0.25]
[1642310480245,24.2876,147.42,147.32,0.51]
[1642310480446,25.13119318,147.41,147.32,0.26]
[1642310480846,31.13119318,147.41,147.32,0.26]
[1642310483059,40.97119318,147.41,147.31,61.09118017]
[1642310483259,41.22119318,147.41,147.31,61.09118017]
[1642310483462,41.22119318,147.41,147.31,36.61928017]
[1642310485366,0.26,147.4,147.31,36.61928017]
[1642310485566,9.84,147.39,147.31,36.61928017]
[1642310485767,5.87858197,147.38,147.31,36.61928017]
[1642310485966,11.87858197,147.38,147.31,36.61928017]
[1642310491989,0.26,147.37,147.31,36.61928017]
[1642310492790,11.87858197,147.38,147.31,36.61928017]
[1642310495393,12.12858197,147.38,147.31,36.61928017]
[1642310495994,11.87858197,147.38,147.31,36.61928017]
[1642310496392,0.26,147.37,147.31,36.61928017]
[1642310497193,0.26,147.37,147.31,36.36928017]
[1642310499097,0.26,147.37,147.31,36.61928017]
[1642310500199,0.26,147.37,147.31,0.25]
[1642310500400,0.26,147.37,147.28,0.26]
[1642310501199,0.26,147.37,147.28,49.85620243]
[1642310501399,0.26,147.37,147.28,50.10620243]
[1642310502100,10.1,147.37,147.28,49.85620243]
[1642310502301,33.2828,147.37,147.28,49.85620243]
[1642310502504,39.5328,147.37,147.28,49.85620243]
[1642310502900,39.5328,147.37,147.28,49.59620243]
[1642310503501,39.5328,147.37,147.28,49.84620243]
[1642310505807,23.1828,147.37,147.29,68.16]
[1642310506006,9.84,147.42,147.29,68.16]
[1642310506206,33.2618,147.42,147.3,24.6758]
[1642310506404,33.2618,147.42,147.31,0.26]
[1642310506604,33.2618,147.42,147.31,68.16]
[1642310506806,33.2618,147.42,147.32,23.007]
[1642310507005,33.2618,147.42,147.32,29.947]
[1642310507206,33.2618,147.42,147.33,0.26]
[1642310507607,9.84,147.42,147.33,0.26]
[1642310507810,9.84,147.42,147.33,68.16]
[1642310508008,9.84,147.42,147.34,49.06319582]
[1642310508408,0.26,147.41,147.35,0.26]
[1642310509009,0.26,147.43,147.35,0.26]
[1642310509839,16.09,147.44,147.35,0.26]
[1642310510032,24.6124,147.45,147.35,0.26]
[1642310510234,30.8624,147.45,147.35,0.26]
[1642310510832,27.20997453,147.44,147.35,0.26]
[1642310511432,27.20997453,147.44,147.35,68.16]
[1642310511832,27.20997453,147.44,147.35,74.41]
[1642310512936,27.45997453,147.44,147.35,6.0]
[1642310513133,1.70077588,147.43,147.34,22.6083]
[1642310513434,9.84,147.42,147.29,10.2082]
[1642310513633,38.9648,147.42,147.3,22.6126]
[1642310513835,40.91557588,147.42,147.3,22.8626]
[1642310514235,3.79980062,147.41,147.31,42.15257125]
[1642310514436,9.84,147.4,147.31,42.40257125]
[1642310514835,16.09,147.4,147.31,42.40257125]
[1642310515238,16.09,147.4,147.31,42.15257125]
[1642310515639,16.09,147.4,147.3,22.6126]
[1642310515842,1.70077588,147.39,147.3,22.6126]
[1642310516338,9.84,147.38,147.3,22.6126]
[1642310516541,9.84,147.38,147.3,0.25]
[1642310516742,47.15915688,147.37,147.3,0.25]
[1642310516943,47.15915688,147.37,147.27,64.94700181]
[1642310517145,0.26,147.36,147.27,64.94700181]
[1642310518444,0.26,147.36,147.27,64.44700181]
[1642310518845,0.26,147.36,147.28,0.26]
[1642310519045,53.15915688,147.37,147.28,0.26]
[1642310519547,28.73225688,147.37,147.28,0.26]
[1642310520848,6.0,147.37,147.28,0.26]
[1642310521246,15.84,147.4,147.28,0.26]
[1642310521447,23.388,147.39,147.28,0.26]
[1642310521847,25.26794841,147.38,147.28,0.26]
[1642310522247,31.26794841,147.38,147.28,0.26]
[1642310522648,31.26794841,147.38,147.27,138.10700181]
[1642310522850,0.26,147.37,147.27,138.10700181]
[1642310524150,0.26,147.37,147.28,1.92893625]
[1642310524351,0.26,147.37,147.28,2.43893625]
[1642310524552,0.26,147.37,147.28,8.43893625]
[1642310530658,0.3,147.37,147.28,8.43893625]
[1642310532961,0.3,147.37,147.28,76.33893625]
[1642310533762,0.3,147.37,147.29,23.0613]
[1642310533961,0.3,147.37,147.3,38.55917136]
[1642310534361,0.3,147.37,147.3,38.80917136]
[1642310538470,0.04,147.37,147.3,38.80917136]
[1642310548311,0.04,147.37,147.31,1.93302415]
[1642310548711,0.04,147.37,147.32,0.26]
[1642310550113,0.04,147.37,147.31,26.75322415]
[1642310552315,0.04,147.37,147.32,0.26]
[1642310554930,0.04,147.37,147.31,26.51322415]
[1642310556430,0.04,147.37,147.32,0.26]
[1642310557430,0.04,147.37,147.32,6.148]
[1642310557829,0.04,147.37,147.33,24.8346]
[1642310558229,0.04,147.37,147.34,48.43871342]
[1642310558429,0.04,147.37,147.34,48.68871342]
[1642310561033,0.04,147.37,147.34,54.68871342]
[1642310561232,0.04,147.37,147.35,23.4845]
[1642310561432,0.04,147.37,147.36,0.26]
[1642310561632,25.4014,147.45,147.36,0.26]
[1642310562061,24.92217316,147.44,147.36,0.26]
[1642310562461,25.17217316,147.44,147.36,0.26]
[1642310566666,24.8914,147.45,147.36,0.26]
[1642310567067,6.0,147.46,147.36,0.26]
[1642310567468,9.6914842,147.48,147.36,0.26]
[1642310567666,25.11126366,147.47,147.36,0.26]
[1642310567866,31.11126366,147.47,147.36,0.26]
[1642310569568,25.11126366,147.47,147.36,0.26]
[1642310571169,23.0508,147.52,147.36,0.26]
[1642310571370,53.12327929,147.54,147.41,0.3109139]
[1642310571569,33.2261,147.58,147.42,9.84]
[1642310571771,24.1628,147.57,147.43,24.1714]
[1642310571974,24.1628,147.57,147.45,0.30808488]
[1642310572171,28.09318603,147.56,147.45,16.88108488]
[1642310572471,28.09318603,147.56,147.47,48.17871342]
[1642310572771,28.09318603,147.56,147.45,40.0146]
[1642310572971,34.09318603,147.56,147.42,1.35160582]
[1642310573171,139.3399,147.55,147.36,23.167]
[1642310573371,9.84,147.54,147.36,23.167]
[1642310573572,0.26,147.53,147.36,23.167]
[1642310573771,9.84,147.52,147.37,49.97080787]
[1642310573970,16.09,147.52,147.38,23.5282]
[1642310574173,0.26,147.51,147.38,23.5282]
[1642310574372,9.84,147.5,147.38,29.7782]
[1642310574574,23.03880616,147.48,147.38,29.7782]
[1642310574770,24.9507,147.47,147.39,0.26]
[1642310574972,25.2107,147.47,147.39,0.26]
[1642310575371,25.2107,147.47,147.38,29.7782]
[1642310575578,25.2107,147.47,147.38,23.7782]
[1642310576377,31.2107,147.47,147.38,23.7782]
[1642310576577,25.2107,147.47,147.38,23.7782]
[1642310576876,31.4607,147.47,147.38,23.7782]
[1642310577676,31.4607,147.47,147.38,0.25]
[1642310577878,31.4607,147.47,147.38,0.26]
[1642310578278,33.16147588,147.47,147.38,0.26]
[1642310578779,31.4607,147.47,147.38,0.26]
[1642310579279,31.4607,147.47,147.37,49.97080787]
[1642310579979,31.4607,147.47,147.37,50.22080787]
[1642310580180,33.16147588,147.47,147.37,0.25]
[1642310580379,9.84,147.46,147.34,23.0423]